Cogmind - Beta 14 @@@ ROGUE MODE // 2024.09.26 @ 13:10:25 Player: Minty Result: Destroyed by P-60 Hacker with Shock Rifle Performance ------------- Evolutions (4) 2000 Regions Visited (10) 2000 Robots Destroyed (258) 1290 Value Destroyed (7201) 7201 Prototype IDs (26) 520 Alien Tech Used (0) 0 Bonus (1415) 1415 TOTAL SCORE: 14426 Bonus ------- High Alert Combat Kills 1201 Follower Combat Kills 109 Registered with UFD 300 Friendly Fire -195 Cogmind --------- Core Integrity 0/850 Matter 59/300 Energy 150/150 System Corruption 13% Temperature Cool (56) Movement Hovering (58) Location -6/Factory Parts ------- > --- POWER (1) -------- Micro Nuclear Core > --- PROPULSION (3) --- Backup Propulsion I Gravmag System Gravmag System > --- UTILITY (6) ------ Advanced Terrain Scan Processor Improved Targeting Computer Advanced Targeting Computer Improved Propulsion Shielding Hacking Suite Hacking Suite > --- WEAPON (5) ------- Magnetic Acceleration Cannon Magnetic Acceleration Cannon > --- INVENTORY (5) ---- Medium Matter Pod (0) Improved Utility Shielding Magnetic Acceleration Cannon Magnetic Acceleration Cannon Plasma Cutter Peak State ------------ > --- POWER ------------ Reinforced Deuterium Engine > --- PROPULSION ------- Advanced Treads Medium Treads > --- UTILITY ---------- Advanced Heat Sink Large Storage Unit Spectral Analyzer Weapon Cycler Improved Light Armor Plating Improved Hacking Suite > --- WEAPON ----------- Enhanced Autogun Enhanced Autogun Enhanced Autogun Gauss Rifle Shock Bomb Launcher > --- INVENTORY -------- Micro Nuclear Core Advanced Heat Sink Medium Matter Pod Enhanced Optical Array Improved Propulsion Shielding Improved Utility Shielding Improved Weapon Shielding Hacking Suite Hacking Suite Proton Cannon Rocket Launcher Plasma Cutter DRS Beacon [Rating: 61] Favorites ----------- Power Reinforced Deuterium Engine Engine Reinforced Deuterium Engine Power Core Micro Nuclear Core Propulsion Improved Treads Treads Improved Treads Leg Aluminum Leg Hover Unit Gravmag System Utility Large Storage Unit Device Weapon Cycler Storage Large Storage Unit Processor Spectral Analyzer Hackware Hacking Suite Protection Weapon Shielding Weapon Enhanced Autogun Energy Gun Improved Medium Laser Energy Cannon Heavy Ion Cannon Ballistic Gun Enhanced Autogun Ballistic Cannon Magnetic Acceleration Cannon Launcher Shock Bomb Launcher Special Weapon Plasma Cutter Slashing Weapon Katana Build | -11 -10 -9 -9 -9 -8 -8 -8 -8 -8 -6 ------- Run | Yrd Mat Mat Min Exi Min Mat Sto Rec Scr Fac Slots Evolved 8 | . . 2 . . . 2 . . . 4 Power . | . . . . . . . . . . . Propulsion 1 | . . . . . . . . . . 1 Utility 4 | . . . . . . 1 . . . 3 Weapon 3 | . . 2 . . . 1 . . . . Parts Attached 156 | . 12 40 2 2 1 47 13 . 5 34 Power 12 | . 1 4 . . . 3 . . 1 3 Engine 10 | . 1 4 . . . 3 . . 1 1 Core 2 | . . . . . . . . . . 2 Reactor . | . . . . . . . . . . . Propulsion 26 | . 2 6 . 2 . 8 . . 2 6 Treads 20 | . 2 6 . 2 . 8 . . 2 . Leg 4 | . . . . . . . . . . 4 Wheel . | . . . . . . . . . . . Hover 2 | . . . . . . . . . . 2 Flight . | . . . . . . . . . . . Utility 40 | . 2 7 2 . 1 12 1 . . 15 Device 10 | . . . 1 . . 7 . . . 2 Storage 2 | . 1 . . . . 1 . . . . Processor 6 | . . . . . . 1 . . . 5 Hackware 3 | . . . . . . . . . . 3 Protection 19 | . 1 7 1 . 1 3 1 . . 5 Artifact . | . . . . . . . . . . . Weapon 78 | . 7 23 . . . 24 12 . 2 10 Energy Gun 9 | . . 1 . . . 5 1 . . 2 Energy Cannon 7 | . . . . . . 4 . . . 3 Ballistic Gun 42 | . 6 20 . . . 7 8 . 1 . Ballistic Cannon 3 | . 1 . . . . . . . . 2 Launcher 13 | . . 2 . . . 5 2 . 1 3 Special Weapon 1 | . . . . . . 1 . . . . Impact Weapon . | . . . . . . . . . . . Slashing Weapon 3 | . . . . . . 2 1 . . . Piercing Weapon . | . . . . . . . . . . . Special Melee Weapon . | . . . . . . . . . . . Unidentified Prototypes 9 | . 1 2 1 . . 3 1 . . 1 Corrupted Parts 1 | . . . . . . . . . . 1 System Corruption 10 | . . . . . . . . . . 10 Parts Lost 31 | . 1 1 . . 1 5 1 . . 22 Power 4 | . . . . . . 1 . . . 3 Propulsion 5 | . . . . . . . . . . 5 Utility 12 | . 1 1 . . 1 2 . . . 7 Weapon 10 | . . . . . . 2 1 . . 7 Highest Loss Streak 10 | . 1 1 . . 1 4 1 . . 10 To Critical Strikes . | . . . . . . . . . . . Average Slot Usage (%) 97 | . 98 98 100 100 99 98 92 100 100 75 Engine 9 | . 14 11 11 11 11 8 9 9 9 4 Treads 18 | . 17 21 22 22 22 18 18 18 18 8 Device 8 | . . . . . . 16 16 9 9 8 Storage 9 | . 14 11 11 11 11 9 9 9 9 4 Protection 6 | . 12 9 11 11 10 1 1 9 9 7 Energy Gun 2 | . . . . . . 7 1 . . 1 Energy Cannon 3 | . . . . . . 10 8 . . . Ballistic Gun 32 | . 27 43 44 44 44 21 19 45 40 16 Launcher 1 | . . . . . . . 2 . 4 3 Slashing Weapon 1 | . . . . . . 3 5 . . . Peak Build Rating 61 | . 14 23 31 24 24 43 40 39 42 61 Average Rating 32 | . 10 21 23 24 23 37 35 39 40 48 On Entrance 25 | 6 6 12 23 24 24 24 40 39 39 42 Naked Turns . | . . . . . . . . . . . Heaviest Build 71 | 13 36 43 41 41 41 71 71 55 58 59 Greatest Support 50 | 20 40 46 46 46 46 46 46 46 50 50 Greatest Overweight (x) 6 | . 1 1 . . . 1 1 1 1 6 Average Overweight (x) . | . . . . . . . . 1 1 . Largest Inventory Capacity 15 | . 15 15 15 15 15 15 15 15 15 15 Average Capacity 14 | . 13 15 15 15 15 15 15 15 15 13 Most Carried 15 | . 15 15 15 15 15 15 15 15 15 15 Average Carried 14 | . 9 14 15 15 14 14 14 15 14 11 Final Capacity 15 | 8 15 15 15 15 15 15 15 15 15 5 Final Carried 15 | 6 15 15 15 15 15 15 15 15 15 5 Class Distribution -------------------- 52% | Tank 20% | Scavenger-Gunner 11% | Gunner 8% | Mutant 3% | Scavenger-Tank Dominant Class ---------------- Mutant | -10/Materials Tank | -9/Materials Tank | -9/Mines Tank | -9/Exiles Tank | -8/Mines Scavenger-Gunner | -8/Materials Scavenger-Gunner | -8/Storage Tank | -8/Recycling Tank | -8/Scraptown Scavenger-Tank | -6/Factory Resources | -11 -10 -9 -9 -9 -8 -8 -8 -8 -8 -6 ----------- Run | Yrd Mat Mat Min Exi Min Mat Sto Rec Scr Fac Matter Collected 6791 | 186 564 1917 138 . 376 1949 332 367 57 905 Remotely . | . . . . . . . . . . . Salvage Created 10161 | . 1062 2642 263 . 389 3171 625 570 . 1439 Parts 655 | . 63 208 17 . 33 184 34 25 . 91 Haulers Intercepted 13 | . 1 5 . . . 6 1 . . . Recyclers Shooed 5 | . 2 . . . . . . . . 3 Parts Field Recycled . | . . . . . . . . . . . Retrieved Matter . | . . . . . . . . . . . Parts Self-Destructed . | . . . . . . . . . . . Prevented . | . . . . . . . . . . . Kills | -11 -10 -9 -9 -9 -8 -8 -8 -8 -8 -6 ------- Run | Yrd Mat Mat Min Exi Min Mat Sto Rec Scr Fac Combat Hostiles Destroyed 172 | . 13 51 4 . 10 53 13 4 . 24 Melee 2 | . . . . . . 2 . . . . Guns 132 | . 13 48 4 . 10 38 6 4 . 9 Cannons 13 | . . . . . . 7 4 . . 2 AOE 25 | . . 3 . . . 6 3 . . 13 Classes Destroyed 16 | . 7 6 . . . 1 1 . . 1 Worker 31 | . 4 10 1 . . 10 2 . . 4 Builder 14 | . 1 4 . . . 3 1 1 . 4 Tunneler 10 | . . 3 2 . 2 2 . . . 1 Hauler 13 | . 1 5 . . . 6 1 . . . Recycler 13 | . 4 1 . . 1 2 1 4 . . Operator 6 | . 2 2 . . . 2 . . . . Watcher 13 | . 2 5 . . . 5 . . . 1 Swarmer 30 | . . 11 . . 7 8 . . . 4 Grunt 91 | . 13 25 4 . 2 32 8 . . 7 Brawler 4 | . . 2 . . . 1 . . . 1 Duelist 6 | . . 2 . . 1 2 . . . 1 Protector 1 | . . 1 . . . . . . . . Sentry 28 | . . 10 . . . 9 4 4 . 1 Hunter 8 | . . . . . . . 1 . . 7 Programmer 3 | . . . . . . . . . . 3 Heavy 1 | . . . . . . 1 . . . . Thug 1 | . . . 1 . . . . . . . Best Kill Streak 9 | . 6 7 2 . 4 9 9 2 . 9 Combat Bots Only 8 | . 3 6 2 . 4 7 4 1 . 8 Max Kills in Single Turn 4 | . 2 3 2 . 2 4 1 2 . 2 Gunslinging 1 | . 1 1 1 . 1 1 . . . . Exploded 2 | . . 2 . . . 2 1 . . 2 Melee 1 | . . . . . . 1 . . . . Uniques/NPCs Destroyed . | . . . . . . . . . . . Combat | -11 -10 -9 -9 -9 -8 -8 -8 -8 -8 -6 -------- Run | Yrd Mat Mat Min Exi Min Mat Sto Rec Scr Fac Hostile Shots Fired 780 | . 52 143 4 . 22 161 47 10 . 341 Missed 248 | . 12 49 . . 3 40 14 3 . 127 Damage Taken 8163 | . 585 1141 51 . 215 2188 523 99 . 3361 Core 1441 | . 60 96 10 . 10 280 83 42 . 860 Absorbed by Shields . | . . . . . . . . . . . Redirected to Shielding 358 | . . 151 7 . 35 46 . . . 119 Regen/Repaired (Parts) 464 | . . 363 . . . 101 . . . . Core Remaining (%) 68 | 100 76 . . . 71 . . . 26 . Volleys Fired 469 | . 66 120 8 . 22 122 27 13 . 91 Largest 5 | . 2 4 4 . 4 5 5 5 . 5 Hottest 293 | . 46 102 100 . 100 260 293 128 . 166 Shots Fired 1616 | . 131 476 32 2 88 519 76 66 . 226 Gun 1463 | . 131 474 32 2 88 456 44 66 . 170 Cannon 95 | . . . . . . 56 19 . . 20 Launcher 58 | . . 2 . . . 7 13 . . 36 Special . | . . . . . . . . . . . Kinetic 1363 | . 131 474 32 2 88 363 40 66 . 167 Thermal 189 | . . . . . . 149 23 . . 17 Explosive 28 | . . 2 . . . 7 13 . . 6 Electromagnetic 36 | . . . . . . . . . . 36 Robot Hit Streak 21 | . 9 21 10 . 6 12 8 14 . 9 Robot Miss Streak 5 | . 4 3 2 . 5 5 4 5 . 5 Penetration Max . | . . . . . . . . . . . Secondary Targets 27 | . 1 12 2 . 3 7 . . . 2 Max Gunslinging Chain 2 | . 1 2 1 . 1 1 . . . 1 Shots Hit Robots 913 | . 78 280 21 . 38 292 39 38 . 127 Core Hits 433 | . 37 111 10 . 18 133 30 11 . 83 Critical Kills 4 | . 2 . 1 . . . 1 . . . Critical Parts Destroyed 4 | . . 3 1 . . . . . . . Critical Strikes 14 | . 2 3 2 . . 4 2 . . 1 Burn 6 | . . . . . . 4 1 . . 1 Destroy 8 | . 2 3 2 . . . 1 . . . Melee Attacks 25 | . . . . . . 24 1 . . . Impact . | . . . . . . . . . . . Slashing 25 | . . . . . . 24 1 . . . Piercing . | . . . . . . . . . . . Sneak Attacks 3 | . . . . . . 3 . . . . Combat Hostiles . | . . . . . . . . . . . Follow-up Attacks . | . . . . . . . . . . . Damage Inflicted 19662 | . 1253 4579 414 . 676 6376 1811 646 . 3907 Guns 13753 | . 1218 4448 383 . 648 4475 380 600 . 1601 Cannons 1450 | . . . . . . 759 335 . . 356 Explosions 3700 | . . 131 . . . 550 1090 . . 1929 Melee 574 | . . . . . . 574 . . . . Ramming 185 | . 35 . 31 . 28 18 6 46 . 21 Kinetic 12669 | . 1218 4448 383 . 648 3356 340 600 . 1676 Thermal 2894 | . . . . . . 1878 375 . . 641 Explosive 2312 | . . 131 . . . 550 1090 . . 541 Electromagnetic 1028 | . . . . . . . . . . 1028 Impact . | . . . . . . . . . . . Slashing 574 | . . . . . . 574 . . . . Piercing . | . . . . . . . . . . . Highest Corruption 12 | . 4 . 5 5 5 . 1 1 . 12 Average Corruption 3 | . 3 . 5 5 5 . 1 1 . 7 Corruption Purged . | . . . . . . . . . . . Corruption Blocked . | . . . . . . . . . . . Effects 77 | . 8 . 14 9 15 . 2 9 . 20 Message Errors 20 | . 4 . 6 . 3 . 2 3 . 2 Matter Fused 13 | . . . 2 1 5 . . 3 . 2 Heat Flow Errors 10 | . 1 . 1 2 1 . . 2 . 3 Energy Discharges 6 | . . . 1 3 . . . . . 2 Parts Rejected 2 | . 1 . . . . . . . . 1 Data Loss (minor) 10 | . . . 4 1 3 . . . . 2 Data Loss (major) 3 | . 1 . . . 1 . . . . 1 Misfires 5 | . . . . 2 1 . . 1 . 1 Alerts 2 | . . . . . . . . . . 2 Misdirections 2 | . . . . . . . . . . 2 Weapon Failures 4 | . 1 . . . 1 . . . . 2 Overload Shots . | . . . . . . . . . . . Overflow Damage 161 | . . . . . . 76 16 . . 69 Projectiles 22 | . . . . . . 22 . . . . Explosions 98 | . . . . . . 13 16 . . 69 Melee 41 | . . . . . . 41 . . . . Knockbacks 1 | . . . . . . . . . . 1 Impact . | . . . . . . . . . . . Kinetic 1 | . . . . . . . . . . 1 Secondary . | . . . . . . . . . . . Self-Inflicted Damage 164 | . . . . . . . . . . 164 Shots 6 | . . . . . . . . . . 6 Rammed 28 | . 3 . 3 . 8 5 . 5 . 4 Targets Rammed 33 | . 4 . 4 . 8 5 1 6 . 5 Kicked 1 | . . . . . . . . . . 1 Crushed 4 | . 1 . 1 . . . 1 1 . . Highest Temperature 560 | . 276 191 105 265 193 560 329 557 . 362 Average Temperature 92 | . 41 35 40 108 65 136 128 140 . 80 Received Heat Transfer 2340 | . 270 399 30 . 18 936 216 36 . 435 Effects 18 | . . . . . . 16 . 2 . . Shutdowns 5 | . . . . . . 3 . 2 . . Energy Bleed 3 | . . . . . . 3 . . . . Interference 8 | . . . . . . 8 . . . . Damage (minor) 1 | . . . . . . 1 . . . . Damage (core) 1 | . . . . . . 1 . . . . Siege Activations . | . . . . . . . . . . . Robots Corrupted 1 | . . . . . . . . . . 1 Combat Hostiles . | . . . . . . . . . . . Parts Fried 4 | . . . . . . . . . . 4 Impact Corruptions . | . . . . . . . . . . . Robots Melted . | . . . . . . . . . . . Combat Hostiles . | . . . . . . . . . . . Parts Melted 14 | . . . . . 2 7 . . . 5 Heat Transferred 5001 | . . . . . . 3478 592 . . 931 Parts Sabotaged . | . . . . . . . . . . . Parts Stolen . | . . . . . . . . . . . Parts Stripped . | . . . . . . . . . . . Power Chain Reactions 3 | . . . . . . . . . . 3 Alert | -11 -10 -9 -9 -9 -8 -8 -8 -8 -8 -6 ------- Run | Yrd Mat Mat Min Exi Min Mat Sto Rec Scr Fac Peak Influence 1053 | . 264 1053 466 . 299 955 924 373 . 592 Initial 391 | . . 111 391 . . 38 385 283 . . Average 439 | . 124 697 409 . 164 487 715 173 . 291 Maximum Alert Level 3 | . 1 3 2 . 1 3 3 1 . 2 Low Security (%) 32 | . 82 10 . . 51 26 . 61 . 45 Level 1 18 | . 17 11 33 . 48 12 9 38 . 14 Level 2 24 | . . 14 66 . . 38 21 . . 40 Level 3 24 | . . 64 . . . 22 69 . . . Level 4 . | . . . . . . . . . . . Level 5 . | . . . . . . . . . . . High Security . | . . . . . . . . . . . Max Security . | . . . . . . . . . . . Sterilizations 2 | . . 1 . . . 1 . . . . Squads Dispatched 41 | . 4 8 1 . . 13 4 . . 11 Investigation 23 | . 3 5 1 . . 8 1 . . 5 Extermination 3 | . . . . . . . . . . 3 Reinforcement 9 | . 1 2 . . . 2 1 . . 3 Assault 3 | . . 1 . . . 2 . . . . Garrison 3 | . . . . . . 1 2 . . . Intercept . | . . . . . . . . . . . Searches Triggered . | . . . . . . . . . . . Construction Impeded 3 | . . . . . . . 1 . . 2 Haulers Reinforced . | . . . . . . . . . . . Active Scanning Responses . | . . . . . . . . . . . Cargo Convoy Interrupts . | . . . . . . . . . . . Stealth | -11 -10 -9 -9 -9 -8 -8 -8 -8 -8 -6 --------- Run | Yrd Mat Mat Min Exi Min Mat Sto Rec Scr Fac Distress Signals 7 | . 1 1 . . . 5 . . . . Communications Jammed 7 | . . . . . . 7 . . . . Distress Signals 7 | . . . . . . 7 . . . . Times Spotted 230 | . 26 58 4 . 10 79 12 3 . 38 Peak Tracking Total 7 | . 3 4 2 . 4 7 3 1 . 5 Tactical Retreats 8 | . 1 . . . . 4 1 . . 2 Traps | -11 -10 -9 -9 -9 -8 -8 -8 -8 -8 -6 ------- Run | Yrd Mat Mat Min Exi Min Mat Sto Rec Scr Fac Traps Triggered 9 | . 3 5 . . . 1 . . . . Indirectly . | . . . . . . . . . . . Trap Hack Attempts . | . . . . . . . . . . . Triggered . | . . . . . . . . . . . Disarmed . | . . . . . . . . . . . Reprogrammed . | . . . . . . . . . . . Reused . | . . . . . . . . . . . Traps Extracted . | . . . . . . . . . . . Installed . | . . . . . . . . . . . Triggered . | . . . . . . . . . . . Objects Rigged 2 | . . . . . . . 2 . . . Exploded 2 | . . . . . . . 2 . . . Machines | -11 -10 -9 -9 -9 -8 -8 -8 -8 -8 -6 ---------- Run | Yrd Mat Mat Min Exi Min Mat Sto Rec Scr Fac Machines Disabled 26 | . 1 1 . . 1 6 4 . . 13 Max in Single Turn 3 | . 1 1 . . 1 1 2 . . 3 Garrison Access 2 | . . . . . . 1 . . . 1 Machines Repaired . | . . . . . . . . . . . Machines Dismantled . | . . . . . . . . . . . Machines Sabotaged 5 | . 1 1 1 . . 2 . . . . Overloaded Fab Kills 9 | . . . . . . . . . . 9 Hacking | -11 -10 -9 -9 -9 -8 -8 -8 -8 -8 -6 --------- Run | Yrd Mat Mat Min Exi Min Mat Sto Rec Scr Fac Machines Accessed 49 | . 6 12 1 . . 15 1 7 . 7 Terminals 34 | . 6 9 1 . . 10 1 6 . 1 Fabricators 2 | . . . . . . . . . . 2 Repair Stations 4 | . . 2 . . . 1 . . . 1 Recycling Units 3 | . . . . . . 2 . 1 . . Scanalyzers 3 | . . 1 . . . 1 . . . 1 Garrison Access 3 | . . . . . . 1 . . . 2 Total Hacks 169 | . 19 45 2 . . 61 5 24 . 13 Successful 103 | . 10 31 2 . . 43 3 9 . 5 Failed 65 | . 9 14 . . . 17 2 15 . 8 Catastrophic 10 | . 2 . . . . 3 . 3 . 2 Database Lockouts 1 | . . . . . . 1 . . . . Manual 74 | . 4 14 1 . . 37 3 11 . 4 Terminals 127 | . 19 29 2 . . 46 5 23 . 3 Fabricators 4 | . . . . . . . . . . 4 Repair Stations 14 | . . 10 . . . 3 . . . 1 Recycling Units 5 | . . . . . . 4 . 1 . . Scanalyzers 14 | . . 6 . . . 7 . . . 1 Garrison Access 5 | . . . . . . 1 . . . 4 Terminal Hacks 50 | . 8 11 1 . . 20 2 8 . . Part Schematic 3 | . . . . . . . . 3 . . Robot Analysis 6 | . . 2 . . . 2 . 2 . . Prototype ID Bank 8 | . 2 2 . . . 1 . 3 . . Level Access Points 1 | . . . . . . 1 . . . . Terminal Index 3 | . . 1 . . . 1 1 . . . Alert Level 12 | . 3 3 1 . . 5 . . . . Unreport Threat 4 | . . 1 . . . 3 . . . . Locate Traps 3 | . 1 . . . . 1 1 . . . Dispatch Records 2 | . . . . . . 2 . . . . Security Status 1 | . 1 . . . . . . . . . Surveillance Status 1 | . . . . . . 1 . . . . Hauler Manifests 3 | . 1 1 . . . 1 . . . . Zone Layout 3 | . . 1 . . . 2 . . . . Fabricator Hacks 1 | . . . . . . . . . . 1 Load Schematic 1 | . . . . . . . . . . 1 Repair Station Hacks 12 | . . 9 . . . 2 . . . 1 Scan Component 6 | . . 5 . . . 1 . . . . Repair 5 | . . 4 . . . 1 . . . . Refit 1 | . . . . . . . . . . 1 Recycling Unit Hacks 5 | . . . . . . 4 . 1 . . Report Inventory 3 | . . . . . . 2 . 1 . . Retrieve Components 2 | . . . . . . 2 . . . . Scanalyzer 11 | . . 6 . . . 5 . . . . Insert Component 5 | . . 3 . . . 2 . . . . Analyze 6 | . . 3 . . . 3 . . . . Garrison Access Hacks 2 | . . . . . . 1 . . . 1 Seal Access 2 | . . . . . . 1 . . . 1 Unauthorized Hacks 22 | . 2 5 1 . . 11 1 . . 2 Terminals 18 | . 2 5 1 . . 9 1 . . . Assimilate 1 | . 1 . . . . . . . . . Botnet 7 | . . 3 . . . 4 . . . . Detonate 1 | . . . . . . . 1 . . . Disrupt 1 | . . . . . . 1 . . . . Operators 2 | . . 1 . . . 1 . . . . Sabotage 6 | . 1 1 1 . . 3 . . . . Fabricators 1 | . . . . . . . . . . 1 Overload 1 | . . . . . . . . . . 1 Repair Stations 1 | . . . . . . 1 . . . . Patch 1 | . . . . . . 1 . . . . Recycling Units . | . . . . . . . . . . . Scanalyzers 2 | . . . . . . 1 . . . 1 Extract 2 | . . . . . . 1 . . . 1 Garrison Access . | . . . . . . . . . . . Data Cores Recovered 2 | . 1 . . . . 1 . . . . Used . | . . . . . . . . . . . Hacking Detections 40 | . 6 12 . . . 12 1 6 . 3 Full Trace Events 21 | . 2 5 . . . 4 1 6 . 3 Feedback Events 1 | . . . . . . . 1 . . . Corruption 1 | . . . . . . . 1 . . . Feedback Blocked . | . . . . . . . . . . . Robot Schematics Acquired . | . . . . . . . . . . . Robots Built . | . . . . . . . . . . . Authchips . | . . . . . . . . . . . Time . | . . . . . . . . . . . Total Robot Build Rating . | . . . . . . . . . . . Part Schematics Acquired 16 | . . 3 . . . 8 . 3 . 2 Parts Built . | . . . . . . . . . . . Authchips . | . . . . . . . . . . . Time . | . . . . . . . . . . . Total Part Build Rating . | . . . . . . . . . . . Parts Repaired 5 | . . 4 . . . 1 . . . . Time 154 | . . 116 . . . 38 . . . . Parts Recycled . | . . . . . . . . . . . Recycled Matter . | . . . . . . . . . . . Retrieved Matter . | . . . . . . . . . . . Retrieved Components 11 | . . . . . . 11 . . . . Parts Scanalyzed 5 | . . 3 . . . 2 . . . . Part Schematics Acquired 4 | . . 3 . . . 1 . . . . Parts Damaged . | . . . . . . . . . . . Bothacking | -11 -10 -9 -9 -9 -8 -8 -8 -8 -8 -6 ------------ Run | Yrd Mat Mat Min Exi Min Mat Sto Rec Scr Fac Used RIF Installer . | . . . . . . . . . . . Robots Hacked . | . . . . . . . . . . . Non-combat . | . . . . . . . . . . . Combat . | . . . . . . . . . . . Robot Hacks Applied . | . . . . . . . . . . . Relay Couplers Released . | . . . . . . . . . . . Fabnet Peak Effective % . | . . . . . . . . . . . Robots Rewired . | . . . . . . . . . . . Allies Hacked . | . . . . . . . . . . . Hacks Repelled . | . . . . . . . . . . . Allies | -11 -10 -9 -9 -9 -8 -8 -8 -8 -8 -6 -------- Run | Yrd Mat Mat Min Exi Min Mat Sto Rec Scr Fac Total Allies 5 | . 1 . 4 . . . . . . . Largest Group 4 | . 1 1 4 3 3 3 . . . . Highest-Rated Group 71 | . 10 10 71 39 39 39 . . . . Highest-Rated Ally 31 | . 10 10 31 16 16 16 . . . . Total Orders . | . . . . . . . . . . . Ally Attacks 48 | . . . 8 . 8 32 . . . . Total Damage 459 | . . . 97 . 54 308 . . . . Kills 5 | . . . 1 . . 4 . . . . Allies Corrupted . | . . . . . . . . . . . Allies Melted . | . . . . . . . . . . . Intel | -11 -10 -9 -9 -9 -8 -8 -8 -8 -8 -6 ------- Run | Yrd Mat Mat Min Exi Min Mat Sto Rec Scr Fac Robot Analysis Total 6 | . . 2 . . . 2 . 2 . . Derelict Logs Recovered 3 | . . . 3 . . . . . . . Drone Launches . | . . . . . . . . . . . Drone Recoveries . | . . . . . . . . . . . Exploration | -11 -10 -9 -9 -9 -8 -8 -8 -8 -8 -6 ------------- Run | Yrd Mat Mat Min Exi Min Mat Sto Rec Scr Fac Turns Passed 14388 | . 1110 2742 695 306 558 4403 443 1409 1722 1000 Spaces Moved 6252 | 1 521 1330 413 190 299 1499 167 570 723 539 Core 174 | . . . . . . . . . . 174 Treads 5731 | . 318 1330 413 190 299 1499 167 570 723 222 Legs 263 | 1 203 . . . . . . . . 59 Wheels . | . . . . . . . . . . . Hover 84 | . . . . . . . . . . 84 Flight . | . . . . . . . . . . . Fastest Speed 50 | 120 120 160 160 160 160 160 160 240 232 50 Average Speed 195 | 120 166 160 160 160 160 241 216 240 236 138 Slowest Speed 350 | 120 190 240 160 160 160 250 240 240 240 350 Overloaded Moves . | . . . . . . . . . . . Propulsion Burnouts . | . . . . . . . . . . . Robots Hopped . | . . . . . . . . . . . Cave-ins Triggered . | . . . . . . . . . . . Exploration Rate (%) 62 | 1 80 93 85 61 68 92 32 89 61 24 Regions Visited 10 Branch Regions 6 Pre-discovered Areas 1 | . . . 1 . . . . . . . Known Exits Taken . | . . . . . . . . . . . Unknown Exits Taken 10 | 1 1 1 1 1 1 1 1 1 1 . Scrap Searched 4 | . . . 1 . . . . . 3 . Spaces Dug 12 | . . . . . . 12 . . . . Terrain Destroyed 217 | . . 8 . . 13 64 91 1 . 40 Melee 4 | . . . . . . 4 . . . . Projectile 37 | . . . . . . 26 8 1 . 2 AOE 176 | . . 8 . . 13 34 83 . . 38 Terrain Rammed . | . . . . . . . . . . . Walls Destroyed . | . . . . . . . . . . . Machines Disabled . | . . . . . . . . . . . Actions | -11 -10 -9 -9 -9 -8 -8 -8 -8 -8 -6 --------- Run | Yrd Mat Mat Min Exi Min Mat Sto Rec Scr Fac Total 7547 | . 633 1650 431 191 337 2056 217 594 743 695 Wait 452 | . 3 120 3 . 7 313 . 1 3 2 Move 6242 | . 520 1329 412 189 298 1498 166 569 722 539 Hop . | . . . . . . . . . . . Pick Up 70 | . 15 16 1 . 1 19 1 2 5 10 Fast Attach 45 | . 4 14 . . . 8 4 . . 15 Attach 26 | . . 2 . . 1 8 1 . . 14 Detach 11 | . 2 . . . . 1 2 . . 6 Swap 85 | . 8 24 2 2 . 31 8 . 5 5 Drop 88 | . 11 25 1 . . 27 6 2 8 8 Fire 469 | . 66 120 8 . 22 122 27 13 . 91 Melee 25 | . . . . . . 24 1 . . . Ram 3 | . . . . . . . . . . 3 Kick 1 | . . . . . . . . . . 1 Crush 29 | . 4 . 4 . 8 5 1 6 . 1 Escape Stasis . | . . . . . . . . . . . Rewire 1 | . . . . . . . . 1 . . Trap . | . . . . . . . . . . . Miscellaneous . | . . . . . . . . . . . Route ------- -11/Scrapyard -10/Materials (discovered 4 exits: *Mat x2 / [*Min x2]) -9/Materials (discovered 4 exits: *Mat x3 / *Min) -9/Mines (discovered 2 exits: *Mat / [*Exi]) -9/Exiles (discovered 2 exits: [*Min x2]) -8/Mines -8/Materials (discovered 5 exits: *Fac x3 / *Sto x2) -8/Storage -8/Recycling (discovered 2 exits: *Fac / [*Scr]) -8/Scraptown -6/Factory History --------- Turn | Location | Event 1 | -11/Scrapyard | Discovered new exit (range 0) 1 | -11/Scrapyard | Entered Materials 317 | -10/Materials | Build established: Mutant 340 | -10/Materials | Discovered new exit (range 7) 624 | -10/Materials | Discovered new exit (range 16) 821 | -10/Materials | Discovered new exit (range 11) 1003 | -10/Materials | Discovered new exit (range 12) 1111 | -10/Materials | Entered another Materials area 1111 | -9/Materials | Accompanied by 1 ally 1111 | -9/Materials | Evolved 2 slots: Weapon x2 1399 | -9/Materials | Build established: Gunner 1405 | -9/Materials | Discovered new exit (range 16) 1701 | -9/Materials | Build established: Tank 1911 | -9/Materials | First assault squad dispatched 2323 | -9/Materials | Discovered new exit (range 16) 2472 | -9/Materials | Repaired Weapon Shielding 2505 | -9/Materials | Repaired Imp. Treads 2589 | -9/Materials | Repaired Weapon Shielding 2959 | -9/Materials | Discovered new exit (range 16) 3240 | -9/Materials | Repaired Imp. Treads 3395 | -9/Materials | Sterilization system engaged 3395 | -9/Materials | Non-combat units ordered to evacuate 3400 | -9/Materials | Discovered new exit (range 15) 3495 | -9/Materials | Combat units ordered to evacuate 3695 | -9/Materials | Ambient heat levels rising (+10) 3845 | -9/Materials | Ambient heat levels rising (+10) 3853 | -9/Materials | Entered Mines 3891 | -9/Mines | Found a damaged Exp. Sensor Array with a note attached 3896 | -9/Mines | Found Prototype Device 3896 | -9/Mines | Identified Exp. Sensor Array 3938 | -9/Mines | Received a Rocket Launcher from a helpful Derelict 3959 | -9/Mines | Learned Materials terminal intel 3995 | -9/Mines | Assisted by bots powering up and referring to "LRC-V3" 4126 | -9/Mines | Learned Materials emergency access door positions 4197 | -9/Mines | Received a Mining Laser from a helpful Derelict 4224 | -9/Mines | Learned location of Zion (-6) 4358 | -9/Mines | Discovered new exit (range 7) 4536 | -9/Mines | Deemed a non-threat by the Exiles lab entrance 4537 | -9/Mines | Discovered new exit (range 5) 4548 | -9/Mines | Entered Exiles 4548 | -9/Exiles | Found Exiles lab abandoned 4548 | -9/Exiles | Accompanied by 3 allies 4572 | -9/Exiles | Discovered new exit (range 15) 4839 | -9/Exiles | Discovered new exit (range 11) 4854 | -9/Exiles | Entered Mines 4854 | -8/Mines | Accompanied by 3 allies 5408 | -8/Mines | Discovered new exit (range 3) 5412 | -8/Mines | Entered Materials 5412 | -8/Materials | Accompanied by 3 allies 5412 | -8/Materials | Evolved 2 slots: Utility x1, Weapon x1 5414 | -8/Materials | Loaded intel: 12 terminal locations 5414 | -8/Materials | Discovered new exit (range 14) 5623 | -8/Materials | Lost 4 parts (1p2u1w) 5885 | -8/Materials | Discovered new exit (range 14) 6333 | -8/Materials | Repaired Minigun 6354 | -8/Materials | Build established: Scavenger-Gunner 6721 | -8/Materials | Central database locked down 6818 | -8/Materials | Discovered new exit (range 10) 6910 | -8/Materials | Destroyed 7 combat bots 7051 | -8/Materials | Garrison activated, responded to threat 7163 | -8/Materials | Build established: Gunner 7374 | -8/Materials | Identified exit to Factory 7812 | -8/Materials | First assault squad dispatched 8221 | -8/Materials | Build established: Scavenger-Gunner 8878 | -8/Materials | Sterilization system engaged 8878 | -8/Materials | Non-combat units ordered to evacuate 8896 | -8/Materials | Core integrity fell below 50% 8978 | -8/Materials | Combat units ordered to evacuate 9178 | -8/Materials | Ambient heat levels rising (+10) 9328 | -8/Materials | Ambient heat levels rising (+10) 9478 | -8/Materials | Ambient heat levels rising (+10) 9628 | -8/Materials | Ambient heat levels rising (+10) 9778 | -8/Materials | Ambient heat levels rising (+10) 9815 | -8/Materials | Entered Storage 10000 | -8/Storage | Used back door to open Recycling access 10000 | -8/Storage | Discovered new exit (range 3) 10149 | -8/Storage | Garrison activated, responded to threat 10258 | -8/Storage | Entered Recycling 10488 | -8/Recycling | Build established: Tank 11079 | -8/Recycling | Discovered new exit (range 16) 11610 | -8/Recycling | Scanned before Scraplab entrance 11646 | -8/Recycling | Entered Scraplab 11665 | -8/Recycling | Discovered new exit (range 2) 11667 | -8/Recycling | Entered Scraptown 11667 | -8/Scraptown | System corruption cleaned by C-Scrubber 12056 | -8/Scraptown | Visited Shadow of the Wyrm 12077 | -8/Scraptown | Visited Awakened 12125 | -8/Scraptown | Visited The Evicted 12169 | -8/Scraptown | Heard Great Nut preacher, LISTEN AND RECITE! 12169 | -8/Scraptown | Visited UFD Registry 12173 | -8/Scraptown | Registered with UFD as "Beamsplitter" 12209 | -8/Scraptown | Visited Fellowship of the Rings 12308 | -8/Scraptown | Visited Derelict Rescue Squad 12323 | -8/Scraptown | Found DRS Beacon 12377 | -8/Scraptown | Visited Scrapoid Research Area 12417 | -8/Scraptown | Visited Infowarlord's Domain 12442 | -8/Scraptown | Found Spectral Analyzer 12491 | -8/Scraptown | Visited Science Testing Area 12512 | -8/Scraptown | Visited DA-N13 Charitable Foundation 12522 | -8/Scraptown | Found DCF Scrap (26 items) 12611 | -8/Scraptown | Visited Scrap Suit Storage 12681 | -8/Scraptown | Visited Junk Repository 12756 | -8/Scraptown | Visited Junk Cannon Lab 12802 | -8/Scraptown | Visited Scrapoid Pod Storage 13382 | -8/Scraptown | Discovered new exit (range 3) 13389 | -8/Scraptown | Entered Factory 13389 | -6/Factory | Evolved 4 slots: Propulsion x1, Utility x3 13778 | -6/Factory | Build established: Scavenger-Tank 14060 | -6/Factory | System corruption reached 10% 14067 | -6/Factory | Destroyed 8 combat bots 14069 | -6/Factory | Lost 10 parts (1p2n2u5w) 14184 | -6/Factory | Core integrity fell below 50% 14218 | -6/Factory | Core integrity fell below 20% 14227 | -6/Factory | Lost 6 parts (1p3n2u) 14389 | -6/Factory | Destroyed by P-60 Hacker with Shock Rifle Last Messages --------------- 14322_ Dropped Med. Matter Pod. 14322_ Extracted 100 matter. 14323_ Acquired Imp. Targeting Computer. 14325_ Acquired Med. Matter Pod. 14331_ Dropped Flexi-carbon Leg. 14332_ Acquired Magnetic Acceleration Cannon. 14335_ Dropped Backup Laser I. 14336_ Acquired Magnetic Acceleration Cannon. 14338_ System corrupted: Heat flow error (+164). 14341_ Discarded Broken Spectral Analyzer. 14341_ Acquired Adv. Targeting Computer. 14364_ ALERT: Rogue bot located, Programmers report to Factory Zone 1M. 14374_ O-24 Administrator: "IFF HANDSHAKE FAILED. SECURING TERMINAL." 14376_ O-24 Administrator uses terminal to summon reinforcements. 14376_ ALERT: Hostiles spotted, dispatching reinforcements to Terminal F004. 14376_ O-24 Administrator locks terminal. 14381_ System corrupted: IFF burst signal emitted. 14382_ Assembly Bed disabled. 14388_ P-60 Hacker knocked back. Map ----- +----------------------------------------------------+ | ?????????????????????????????????????????????????? | | ?????????????????????????????????????????????????? | | ?????????????????????????????????????????????????? | | ?????????????????????????????????????????????????? | | ?????????????????????????????????????????????????? | | ?????????????????????????????????????????????????? | | ??????????????#??????????????????????????????????? | | ????????????? #??????????????????????????????????? | | ????????????? + ????????????????????????????????? | | ??????"????? # "?? ????????????????????????? | | ????""" """" # "T" ??????????????????????? | | ???"""" """" # " " ""????????????????????? | | ?? """" """" # ????????????????????? | | ?# """" """" # ?????????????????????? | | ?# """" """" # #?????????????????????? | | ?# % # #?????????????????????? | | ?#%] # #?????????????????????? | | # # A #?????????????????????? | | ??########+#### """" #?????????????????????? | | ?????????# #??# """" !#?????????????????????? | | ########## #### """" #?????????????????????? | | """" #?????????????????????? | | """" #?????????????????????? | | "" #?????????????????????? | | p% #?????????????????????? | | @ #?????????????????????? | | ##########+#########;###+#+#?????????????????????? | | ?????????????????????? ??????????????????????? | | ???????????????????? ????????????????????? | | ##???????????????? #??????????????????? | | +????????????# #??????????????????? | | ####????????????# #??????????????????? | | #???????????????# #??????????????????? | | #???????????????# #??????????????????? | | #???????????????# #??????????????????? | | #???????????????# #??????????????????? | | #???????????????# #??????????????????? | | #???????????????# #??????????????????? | | #???????????????# #??????????????????? | | #???????????????##############??????????????????? | | #???????????????????????????????????????????????? | | #???????????????????????????????????????????????? | | #???????????????????????????????????????????????? | | #???????????????????????????????????????????????? | | ##????????##?????????????????????????????????????? | | ########## ##????????????????????????????????????? | | # [ #????????????????????????????????????? | | # """" !!! #????????????????????????????????????? | | # """""" ! #????????????????????????????????????? | | # ""F "" #????????????????????????????????????? | +----------------------------------------------------+ Best States ------------- Heat Dissipation 56 Energy Generation 23 Energy Capacity 290 Matter Stores 300 Matter Capacity 300 Sight Range 24 Robot Scan Range 15 Terrain Scan Range 14 Terrain Scan Density 210 Jamming Range 12 Armor Coverage 300 Propulsion Shielding 66 Weapon Shielding 66 Weapon Cycling 15 Evasion (%) 55 Targeting Accuracy 14 Recoil Reduction 2 Offensive Hacking 20 Item Schematics ----------------- Imp. Assault Rifle | -9/Materials | Scanalyzed Weapon Shielding | -9/Materials | Scanalyzed Plasma Cutter | -9/Materials | Scanalyzed Beamcaster | -8/Materials | Scanalyzed VTOL Module | -8/Materials | Extracted Cooling System | -8/Materials | Extracted Hvy. Particle Cannon | -8/Materials | Extracted Imp. VTOL Module | -8/Materials | Extracted Minigun | -8/Materials | Extracted Nuclear Core | -8/Materials | Extracted Sml. Storage Unit | -8/Materials | Extracted Angular Momentum Engine | -8/Recycling | Hacked Imp. Carbon-fiber Leg | -8/Recycling | Hacked Magnetic Acceleration Cannon | -8/Recycling | Hacked Core Analyzer | -6/Factory | Extracted Thermal Shield | -6/Factory | Extracted Robot Schematics ------------------ None Fabricated ------------ Nothing Alien Tech Used ----------------- None Achievements -------------- None Challenges ------------ None Game ------ Seed DispersionCannonBuckler Manual? 0 Play Time 01:09:01 Cumulative 949.9 hours Start 2024.09.26 @ 11:56:10 End 2024.09.26 @ 13:10:25 Sessions 1 Manual Loads 0 Difficulty Rogue Special Mode None Game No. 1159 Rogue 879 Adventurer 124 Explorer 156 Win Type - Total 41 Types 28/0/8/3/1/0/0/1/0 Lore% 83 Gallery% 90 Achievement% 78 Wizard Run 0 Options --------- Layout 0 ASCII 0 Keyboard 1 Movement Numpad Keybinds 0 Fullscreen 2 Font 18/X11 Map View 76x50 Zoom Use 0% Tactical HUD 1 Map Filters NONE Filters NONE Steam 1 RUN: 7606d734-b8ed-43fb-8533-a4690124f158